Workbook

Sheet Online
A1: Minutes | B1: °F FT | C1: % O2x10 | D1: % COx100 | E1: Date / time | F1: °F AT | G1: °F FT | H1: % O2 | I1: ppm CO | J1: % CO2 | K1: ratio | L1: % Effg | M1: % Effn | N1: % ExAir | O1: ppm uCO | P1: °F AT | Q1: ppm amCO2 | R1: ppm amCO | S1: l/min Pump
B2: =AVERAGE(FT) -> 329.4605466 | C2: =AVERAGE(Oxy) -> 12.0869441 | D2: =AVERAGE(CO) -> 817.136646
A3: 0 | B3: =FT -> 233.3 | C3: =Oxy*10 -> 143 | D3: =CO/100 -> 10.66 | E3: 2009-02-06T11:24:44 | F3: 58.4 | G3: 233.3 | H3: 14.3 | I3: 1066 | J3: 4.91 | K3: 0.0217 | L3: 82.6 | M3: 87.7 | N3: 215.4 | O3: 3362 | P3: 58.4 | S3: 0.33
A4: 0.5 | B4: 238.8 | C4: 140 | D4: 9.78 | E4: 2009-02-06T11:25:14 | F4: 58.7 | G4: 238.8 | H4: 14 | I4: 978 | J4: 5.13 | K4: 0.0191 | L4: 82.8 | M4: 87.9 | N4: 202.1 | O4: 2954 | P4: 58.7 | S4: 0.29
A5: 1 | B5: 241.1 | C5: 142 | D5: 9.41 | E5: 2009-02-06T11:25:44 | F5: 59 | G5: 241.1 | H5: 14.2 | I5: 941 | J5: 5.03 | K5: 0.0187 | L5: 82.5 | M5: 87.6 | N5: 208.3 | O5: 2901 | P5: 59 | S5: 0.25
A6: 1.5 | B6: 232.9 | C6: 137 | D6: 11.65 | E6: 2009-02-06T11:26:14 | F6: 58.9 | G6: 232.9 | H6: 13.7 | I6: 1165 | J6: 5.37 | K6: 0.0217 | L6: 83.4 | M6: 88.6 | N6: 188.4 | O6: 3360 | P6: 58.9 | S6: 0.23
A7: 2 | B7: 233.8 | C7: 133 | D7: 13.67 | E7: 2009-02-06T11:26:44 | F7: 58.9 | G7: 233.8 | H7: 13.3 | I7: 1367 | J7: 5.7 | K7: 0.024 | L7: 83.7 | M7: 88.9 | N7: 172.1 | O7: 3720 | P7: 58.9 | S7: 0.21
A8: 2.5 | B8: 240.5 | C8: 133 | D8: 11.88 | E8: 2009-02-06T11:27:14 | F8: 59 | G8: 240.5 | H8: 13.3 | I8: 1188 | J8: 5.67 | K8: 0.021 | L8: 83.5 | M8: 88.7 | N8: 173.4 | O8: 3248 | P8: 59 | S8: 0.2
A9: 3 | B9: 238.3 | C9: 134 | D9: 9.91 | E9: 2009-02-06T11:27:44 | F9: 59.2 | G9: 238.3 | H9: 13.4 | I9: 991 | J9: 5.64 | K9: 0.0176 | L9: 83.8 | M9: 89 | N9: 174.8 | O9: 2723 | P9: 59.2 | S9: 0.2
A10: 3.5 | B10: 239.1 | C10: 129 | D10: 9.67 | E10: 2009-02-06T11:28:14 | F10: 59.4 | G10: 239.1 | H10: 12.9 | I10: 967 | J10: 5.99 | K10: 0.0162 | L10: 84.3 | M10: 89.5 | N10: 158.9 | O10: 2503 | P10: 59.4 | S10: 0.19
A11: 4 | B11: 243 | C11: 128 | D11: 8.63 | E11: 2009-02-06T11:28:44 | F11: 59.5 | G11: 243 | H11: 12.8 | I11: 863 | J11: 6.04 | K11: 0.0143 | L11: 84.3 | M11: 89.5 | N11: 156.7 | O11: 2215 | P11: 59.5 | S11: 0.15
A12: 4.5 | B12: 245.8 | C12: 125 | D12: 7.15 | E12: 2009-02-06T11:29:14 | F12: 59.8 | G12: 245.8 | H12: 12.5 | I12: 715 | J12: 6.27 | K12: 0.0114 | L12: 84.6 | M12: 89.9 | N12: 147.3 | O12: 1768 | P12: 59.8 | S12: 0.12
A13: 5 | B13: 246.6 | C13: 126 | D13: 6.33 | E13: 2009-02-06T11:29:44 | F13: 60.2 | G13: 246.6 | H13: 12.6 | I13: 633 | J13: 6.22 | K13: 0.0102 | L13: 84.6 | M13: 89.9 | N13: 149.1 | O13: 1577 | P13: 60.2 | S13: 0.1
A14: 5.5 | B14: 244.4 | C14: 124 | D14: 7.48 | E14: 2009-02-06T11:30:14 | F14: 60.4 | G14: 244.4 | H14: 12.4 | I14: 748 | J14: 6.34 | K14: 0.0118 | L14: 84.8 | M14: 90.1 | N14: 144.4 | O14: 1828 | P14: 60.4 | S14: 0.45
A15: 6 | B15: 251.7 | C15: 124 | D15: 7.13 | E15: 2009-02-06T11:30:44 | F15: 60.6 | G15: 251.7 | H15: 12.4 | I15: 713 | J15: 6.34 | K15: 0.0112 | L15: 84.5 | M15: 89.7 | N15: 144.5 | O15: 1743 | P15: 60.6 | S15: 0.45
A16: 6.5 | B16: 247.4 | C16: 126 | D16: 6.62 | E16: 2009-02-06T11:31:14 | F16: 60.7 | G16: 247.4 | H16: 12.6 | I16: 662 | J16: 6.2 | K16: 0.0107 | L16: 84.5 | M16: 89.8 | N16: 150.2 | O16: 1656 | P16: 60.7 | S16: 0.41
A17: 7 | B17: 249.3 | C17: 126 | D17: 5.06 | E17: 2009-02-06T11:31:44 | F17: 61 | G17: 249.3 | H17: 12.6 | I17: 506 | J17: 6.19 | K17: 0.0082 | L17: 84.6 | M17: 89.8 | N17: 150.3 | O17: 1266 | P17: 61 | S17: 0.39
A18: 7.5 | B18: 249.9 | C18: 126 | D18: 4.38 | E18: 2009-02-06T11:32:14 | F18: 61.2 | G18: 249.9 | H18: 12.6 | I18: 438 | J18: 6.22 | K18: 0.007 | L18: 84.7 | M18: 89.9 | N18: 149.2 | O18: 1092 | P18: 61.2 | S18: 0.37
A19: 8 | B19: 255.6 | C19: 128 | D19: 4.99 | E19: 2009-02-06T11:32:44 | F19: 61.4 | G19: 255.6 | H19: 12.8 | I19: 499 | J19: 6.02 | K19: 0.0083 | L19: 84.1 | M19: 89.3 | N19: 157.3 | O19: 1284 | P19: 61.4 | S19: 0.35
A20: 8.5 | B20: 254.3 | C20: 133 | D20: 5.37 | E20: 2009-02-06T11:33:14 | F20: 61.6 | G20: 254.3 | H20: 13.3 | I20: 537 | J20: 5.7 | K20: 0.0094 | L20: 83.6 | M20: 88.8 | N20: 171.9 | O20: 1460 | P20: 61.6 | S20: 0.33
A21: 9 | B21: 253.7 | C21: 134 | D21: 6.24 | E21: 2009-02-06T11:33:44 | F21: 61.8 | G21: 253.7 | H21: 13.4 | I21: 624 | J21: 5.64 | K21: 0.0111 | L21: 83.5 | M21: 88.7 | N21: 174.6 | O21: 1713 | P21: 61.8 | S21: 0.31
A22: 9.5 | B22: 249.6 | C22: 134 | D22: 6.65 | E22: 2009-02-06T11:34:14 | F22: 61.8 | G22: 249.6 | H22: 13.4 | I22: 665 | J22: 5.62 | K22: 0.0118 | L22: 83.6 | M22: 88.8 | N22: 175.9 | O22: 1835 | P22: 61.8 | S22: 0.3
A23: 10 | B23: 252.2 | C23: 134 | D23: 6.58 | E23: 2009-02-06T11:34:44 | F23: 62.1 | G23: 252.2 | H23: 13.4 | I23: 658 | J23: 5.64 | K23: 0.0117 | L23: 83.5 | M23: 88.7 | N23: 175 | O23: 1810 | P23: 62.1 | S23: 0.29
A24: 10.5 | B24: 250.2 | C24: 131 | D24: 6.08 | E24: 2009-02-06T11:35:14 | F24: 61.7 | G24: 250.2 | H24: 13.1 | I24: 608 | J24: 5.79 | K24: 0.0105 | L24: 83.9 | M24: 89.1 | N24: 167.5 | O24: 1626 | P24: 61.7 | S24: 0.31
A25: 11 | B25: 239.7 | C25: 122 | D25: 3.77 | E25: 2009-02-06T11:35:44 | F25: 61.3 | G25: 239.7 | H25: 12.2 | I25: 377 | J25: 6.53 | K25: 0.0058 | L25: 85.6 | M25: 90.9 | N25: 137.4 | O25: 895 | P25: 61.3 | S25: 0.33
A26: 11.5 | B26: 241.6 | C26: 120 | D26: 4.75 | E26: 2009-02-06T11:36:14 | F26: 61.6 | G26: 241.6 | H26: 12 | I26: 475 | J26: 6.64 | K26: 0.0072 | L26: 85.6 | M26: 90.9 | N26: 133.4 | O26: 1108 | P26: 61.6 | S26: 0.28
A27: 12 | B27: 245.1 | C27: 120 | D27: 4.88 | E27: 2009-02-06T11:36:44 | F27: 61.6 | G27: 245.1 | H27: 12 | I27: 488 | J27: 6.66 | K27: 0.0073 | L27: 85.4 | M27: 90.7 | N27: 132.7 | O27: 1136 | P27: 61.6 | S27: 0.27
A28: 12.5 | B28: 242.1 | C28: 120 | D28: 4.42 | E28: 2009-02-06T11:37:14 | F28: 61.5 | G28: 242.1 | H28: 12 | I28: 442 | J28: 6.66 | K28: 0.0066 | L28: 85.6 | M28: 90.9 | N28: 132.7 | O28: 1029 | P28: 61.5 | S28: 0.24
A29: 13 | B29: 242.9 | C29: 118 | D29: 4.83 | E29: 2009-02-06T11:37:44 | F29: 61.9 | G29: 242.9 | H29: 11.8 | I29: 483 | J29: 6.77 | K29: 0.0071 | L29: 85.7 | M29: 91 | N29: 129 | O29: 1106 | P29: 61.9 | S29: 0.22
A30: 13.5 | B30: 245 | C30: 116 | D30: 4.9 | E30: 2009-02-06T11:38:14 | F30: 62.4 | G30: 245 | H30: 11.6 | I30: 490 | J30: 6.96 | K30: 0.007 | L30: 85.8 | M30: 91.1 | N30: 122.6 | O30: 1091 | P30: 62.4 | S30: 0.2
A31: 14 | B31: 245.3 | C31: 114 | D31: 4.11 | E31: 2009-02-06T11:38:44 | F31: 62.4 | G31: 245.3 | H31: 11.4 | I31: 411 | J31: 7.07 | K31: 0.0058 | L31: 85.9 | M31: 91.3 | N31: 119.4 | O31: 902 | P31: 62.4 | S31: 0.2
A32: 14.5 | B32: 252.9 | C32: 107 | D32: 4.61 | E32: 2009-02-06T11:39:14 | F32: 62.6 | G32: 252.9 | H32: 10.7 | I32: 461 | J32: 7.57 | K32: 0.0061 | L32: 86.1 | M32: 91.5 | N32: 104.7 | O32: 944 | P32: 62.6 | S32: 0.2
A33: 15 | B33: 253.4 | C33: 132 | D33: 4.54 | E33: 2009-02-06T11:39:44 | F33: 62.8 | G33: 253.4 | H33: 13.2 | I33: 454 | J33: 5.73 | K33: 0.0079 | L33: 83.8 | M33: 89 | N33: 170.7 | O33: 1229 | P33: 62.8 | S33: 0.19
A34: 15.5 | B34: 254.6 | C34: 102 | D34: 6.51 | E34: 2009-02-06T11:40:14 | F34: 63.1 | G34: 254.6 | H34: 10.2 | I34: 651 | J34: 7.98 | K34: 0.0082 | L34: 86.3 | M34: 91.7 | N34: 94.2 | O34: 1264 | P34: 63.1 | S34: 0.17
A35: 16 | B35: 252.1 | C35: 96 | D35: 5.61 | E35: 2009-02-06T11:40:44 | F35: 63.1 | G35: 252.1 | H35: 9.6 | I35: 561 | J35: 8.4 | K35: 0.0067 | L35: 86.8 | M35: 92.2 | N35: 84.5 | O35: 1035 | P35: 63.1 | S35: 0.15
A36: 16.5 | B36: 255.4 | C36: 94 | D36: 9.11 | E36: 2009-02-06T11:41:14 | F36: 63.1 | G36: 255.4 | H36: 9.4 | I36: 911 | J36: 8.53 | K36: 0.0107 | L36: 86.6 | M36: 91.9 | N36: 81.8 | O36: 1656 | P36: 63.1 | S36: 0.14
A37: 17 | B37: 256.9 | C37: 95 | D37: 6.74 | E37: 2009-02-06T11:41:44 | F37: 63.6 | G37: 256.9 | H37: 9.5 | I37: 674 | J37: 8.52 | K37: 0.0079 | L37: 86.7 | M37: 92 | N37: 81.9 | O37: 1226 | P37: 63.6 | S37: 0.19
A38: 17.5 | B38: 260 | C38: 90 | D38: 6.94 | E38: 2009-02-06T11:42:14 | F38: 63.7 | G38: 260 | H38: 9 | I38: 694 | J38: 8.88 | K38: 0.0078 | L38: 86.8 | M38: 92.2 | N38: 74.5 | O38: 1211 | P38: 63.7 | S38: 0.14
A39: 18 | B39: 260.4 | C39: 87 | D39: 9.51 | E39: 2009-02-06T11:42:44 | F39: 63.4 | G39: 260.4 | H39: 8.7 | I39: 951 | J39: 9.11 | K39: 0.0104 | L39: 86.8 | M39: 92.2 | N39: 70.1 | O39: 1618 | P39: 63.4 | S39: 0.11
A40: 18.5 | B40: 260.5 | C40: 85 | D40: 9.51 | E40: 2009-02-06T11:43:14 | F40: 63.5 | G40: 260.5 | H40: 8.5 | I40: 951 | J40: 9.22 | K40: 0.0103 | L40: 86.9 | M40: 92.3 | N40: 68 | O40: 1598 | P40: 63.5 | S40: 0.4
A41: 19 | B41: 265.8 | C41: 88 | D41: 7.87 | E41: 2009-02-06T11:43:44 | F41: 63.6 | G41: 265.8 | H41: 8.8 | I41: 787 | J41: 9 | K41: 0.0087 | L41: 86.7 | M41: 92 | N41: 72.2 | O41: 1356 | P41: 63.6 | S41: 0.31
A42: 19.5 | B42: 262.3 | C42: 92 | D42: 7.31 | E42: 2009-02-06T11:44:14 | F42: 63.8 | G42: 262.3 | H42: 9.2 | I42: 731 | J42: 8.69 | K42: 0.0084 | L42: 86.6 | M42: 92 | N42: 78.4 | O42: 1304 | P42: 63.8 | S42: 0.26
A43: 20 | B43: 267.4 | C43: 89 | D43: 8.62 | E43: 2009-02-06T11:44:44 | F43: 63.9 | G43: 267.4 | H43: 8.9 | I43: 862 | J43: 8.95 | K43: 0.0096 | L43: 86.5 | M43: 91.9 | N43: 73.1 | O43: 1492 | P43: 63.9 | S43: 0.24
A44: 20.5 | B44: 265 | C44: 87 | D44: 6.08 | E44: 2009-02-06T11:45:14 | F44: 64.1 | G44: 265 | H44: 8.7 | I44: 608 | J44: 9.1 | K44: 0.0067 | L44: 86.9 | M44: 92.3 | N44: 70.2 | O44: 1035 | P44: 64.1 | S44: 0.18
A45: 21 | B45: 265.4 | C45: 82 | D45: 6.55 | E45: 2009-02-06T11:45:44 | F45: 64.3 | G45: 265.4 | H45: 8.2 | I45: 655 | J45: 9.46 | K45: 0.0069 | L45: 87.1 | M45: 92.5 | N45: 63.9 | O45: 1073 | P45: 64.3 | S45: 0.11
A46: 21.5 | B46: 267.6 | C46: 80 | D46: 6.59 | E46: 2009-02-06T11:46:14 | F46: 64.5 | G46: 267.6 | H46: 8 | I46: 659 | J46: 9.57 | K46: 0.0069 | L46: 87.1 | M46: 92.5 | N46: 62 | O46: 1067 | P46: 64.5 | S46: 0.04
A47: 22 | B47: 266.3 | C47: 83 | D47: 5.36 | E47: 2009-02-06T11:46:44 | F47: 64.6 | G47: 266.3 | H47: 8.3 | I47: 536 | J47: 9.37 | K47: 0.0057 | L47: 87.1 | M47: 92.5 | N47: 65.4 | O47: 887 | P47: 64.6 | S47: 0.05
A48: 22.5 | B48: 268.2453 | C48: 83 | D48: 5.36 | E48: 2009-02-06T11:47:14 | F48: 64.6 | G48: =G47+1.9453 -> 268.2453 | H48: 8.3 | I48: 536 | J48: 9.37 | K48: 0.0057 | L48: 87.1 | M48: 92.5 | N48: 65.4 | O48: 887 | P48: 64.6 | S48: 0.03
A49: 23 | B49: 270.1906 | C49: 83 | D49: 5.36 | E49: 2009-02-06T11:47:44 | F49: 64.6 | G49: =G48+1.9453 -> 270.1906 | H49: 8.3 | I49: 536 | J49: 9.37 | K49: 0.0057 | L49: 87.1 | M49: 92.5 | N49: 65.4 | O49: 887 | P49: 64.6 | S49: 0.05
A50: 23.5 | B50: 272.1359 | C50: 83 | D50: 5.36 | E50: 2009-02-06T11:48:14 | F50: 64.6 | G50: 272.1359 | H50: 8.3 | I50: 536 | J50: 9.37 | K50: 0.0057 | L50: 87.1 | M50: 92.5 | N50: 65.4 | O50: 887 | P50: 64.6 | S50: 0.02
A51: 24 | B51: 274.0812 | C51: 83 | D51: 5.36 | E51: 2009-02-06T11:48:44 | F51: 64.6 | G51: 274.0812 | H51: 8.3 | I51: 536 | J51: 9.37 | K51: 0.0057 | L51: 87.1 | M51: 92.5 | N51: 65.4 | O51: 887 | P51: 64.6 | S51: 0.01
A52: 24.5 | B52: 276.0265 | C52: 83 | D52: 5.36 | E52: 2009-02-06T11:49:14 | F52: 64.6 | G52: 276.0265 | H52: 8.3 | I52: 536 | J52: 9.37 | K52: 0.0057 | L52: 87.1 | M52: 92.5 | N52: 65.4 | O52: 887 | P52: 64.6 | S52: 0.01
A53: 25 | B53: 277.9718 | C53: 83 | D53: 5.36 | E53: 2009-02-06T11:49:44 | F53: 64.6 | G53: 277.9718 | H53: 8.3 | I53: 536 | J53: 9.37 | K53: 0.0057 | L53: 87.1 | M53: 92.5 | N53: 65.4 | O53: 887 | P53: 64.6 | S53: 0.4
A54: 25.5 | B54: 279.9171 | C54: 83 | D54: 5.36 | E54: 2009-02-06T11:50:14 | F54: 64.6 | G54: 279.9171 | H54: 8.3 | I54: 536 | J54: 9.37 | K54: 0.0057 | L54: 87.1 | M54: 92.5 | N54: 65.4 | O54: 887 | P54: 64.6 | S54: 0.1
A55: 26 | B55: 281.8624 | C55: 83 | D55: 5.36 | E55: 2009-02-06T11:50:44 | F55: 64.6 | G55: 281.8624 | H55: 8.3 | I55: 536 | J55: 9.37 | K55: 0.0057 | L55: 87.1 | M55: 92.5 | N55: 65.4 | O55: 887 | P55: 64.6 | S55: 0.09
A56: 26.5 | B56: 283.8077 | C56: 83 | D56: 5.36 | E56: 2009-02-06T11:51:14 | F56: 64.6 | G56: 283.8077 | H56: 8.3 | I56: 536 | J56: 9.37 | K56: 0.0057 | L56: 87.1 | M56: 92.5 | N56: 65.4 | O56: 887 | P56: 64.6 | S56: 0.1
A57: 27 | B57: 285.753 | C57: 83.91 | D57: 5.36 | E57: 2009-02-06T11:51:44 | G57: 285.753 | H57: =H56+0.091 -> 8.391 | I57: 536 | S57: 0.37
A58: 27.5 | B58: 287.6983 | C58: 84.82 | D58: 5.36 | E58: 2009-02-06T11:52:14 | G58: 287.6983 | H58: =H57+0.091 -> 8.482 | I58: 536 | S58: 0.32
A59: 28 | B59: 289.6436 | C59: 85.73 | D59: 5.36 | E59: 2009-02-06T11:52:44 | G59: 289.6436 | H59: =H58+0.091 -> 8.573 | I59: 536 | S59: 0.34
A60: 28.5 | B60: 291.5889 | C60: 86.64 | D60: 5.36 | E60: 2009-02-06T11:53:14 | G60: 291.5889 | H60: 8.664 | I60: 536 | S60: 0.42
A61: 29 | B61: 293.5342 | C61: 87.55 | D61: 5.36 | E61: 2009-02-06T11:53:44 | G61: 293.5342 | H61: 8.755 | I61: 536 | S61: 0.39
A62: 29.5 | B62: 295.4795 | C62: 88.46 | D62: 5.36 | E62: 2009-02-06T11:54:14 | G62: 295.4795 | H62: 8.846 | I62: 536 | S62: 0.4
A63: 30 | B63: 297.4248 | C63: 89.37 | D63: 5.36 | E63: 2009-02-06T11:54:44 | G63: 297.4248 | H63: 8.937 | I63: 536 | S63: 0.39
A64: 30.5 | B64: 299.3701 | C64: 90.28 | D64: 5.36 | E64: 2009-02-06T11:55:14 | G64: 299.3701 | H64: 9.028 | I64: 536 | S64: 0.38
A65: 31 | B65: 301.3154 | C65: 91.19 | D65: 5.36 | E65: 2009-02-06T11:55:44 | G65: 301.3154 | H65: 9.119 | I65: 536 | S65: 0.37
A66: 31.5 | B66: 303.2607 | C66: 92.1 | D66: 5.36 | E66: 2009-02-06T11:56:14 | G66: 303.2607 | H66: 9.21 | I66: 536 | S66: 0.37
A67: 32 | B67: =FT -> 305.206 | C67: =Oxy*10 -> 93.01 | D67: =CO/100 -> 5.36 | E67: 2009-02-06T11:56:44 | G67: 305.206 | H67: 9.301 | I67: 536 | S67: 0.52
A68: 32.5 | B68: 307.1513 | C68: 93.92 | D68: 5.36 | E68: 2009-02-06T11:57:14 | G68: 307.1513 | H68: 9.392 | I68: 536 | S68: 0.51
A69: 33 | B69: 309.0966 | C69: 94.83 | D69: 5.36 | E69: 2009-02-06T11:57:44 | G69: 309.0966 | H69: 9.483 | I69: 536 | S69: 0.54
A70: 33.5 | B70: 311.0419 | C70: 95.74 | D70: 5.36 | E70: 2009-02-06T11:58:14 | G70: 311.0419 | H70: 9.574 | I70: 536 | S70: 0.54
A71: 34 | B71: 312.9872 | C71: 96.65 | D71: 5.36 | E71: 2009-02-06T11:58:44 | G71: 312.9872 | H71: 9.665 | I71: 536 | S71: 0.53
A72: 34.5 | B72: 314.9325 | C72: 97.56 | D72: 5.36 | E72: 2009-02-06T11:59:14 | G72: 314.9325 | H72: 9.756 | I72: 536 | S72: 0.52
A73: 35 | B73: 316.8778 | C73: 98.47 | D73: 5.36 | E73: 2009-02-06T11:59:44 | G73: 316.8778 | H73: 9.847 | I73: 536 | S73: 0.51
A74: 35.5 | B74: 318.8231 | C74: 99.38 | D74: 5.36 | E74: 2009-02-06T12:00:14 | G74: 318.8231 | H74: 9.938 | I74: 536 | S74: 0.51
A75: 36 | B75: 320.7684 | C75: 100.29 | D75: 5.36 | E75: 2009-02-06T12:00:44 | G75: 320.7684 | H75: 10.029 | I75: 536 | S75: 0.5
A76: 36.5 | B76: 322.7137 | C76: 101.2 | D76: 5.36 | E76: 2009-02-06T12:01:14 | G76: 322.7137 | H76: 10.12 | I76: 536 | S76: 0.5
A77: 37 | B77: 324.659 | C77: 102.11 | D77: 5.36 | E77: 2009-02-06T12:01:44 | G77: 324.659 | H77: 10.211 | I77: 536 | S77: 0.5
A78: 37.5 | B78: 326.6043 | C78: 103.02 | D78: 5.36 | E78: 2009-02-06T12:02:14 | G78: 326.6043 | H78: 10.302 | I78: 536 | S78: 0.5
A79: 38 | B79: 328.5496 | C79: 103.93 | D79: 5.36 | E79: 2009-02-06T12:02:44 | G79: 328.5496 | H79: 10.393 | I79: 536 | S79: 0.49
A80: 38.5 | B80: 330.4949 | C80: 104.84 | D80: 5.36 | E80: 2009-02-06T12:03:14 | G80: 330.4949 | H80: 10.484 | I80: 536 | S80: 0.49
A81: 39 | B81: 332.4402 | C81: 105.75 | D81: 5.36 | E81: 2009-02-06T12:03:44 | G81: 332.4402 | H81: 10.575 | I81: 536 | S81: 0.49
A82: 39.5 | B82: 334.3855 | C82: 106.66 | D82: 5.36 | E82: 2009-02-06T12:04:14 | G82: 334.3855 | H82: 10.666 | I82: 536 | S82: 0.49
A83: 40 | B83: 336.3308 | C83: 107.57 | D83: 5.36 | E83: 2009-02-06T12:04:44 | G83: 336.3308 | H83: 10.757 | I83: 536 | S83: 0.49
A84: 40.5 | B84: 338.2761 | C84: 108.48 | D84: 5.36 | E84: 2009-02-06T12:05:14 | G84: 338.2761 | H84: 10.848 | I84: 536 | S84: 0.49
A85: 41 | B85: 340.2214 | C85: 109.39 | D85: 5.36 | E85: 2009-02-06T12:04:21 | F85: 64.3 | G85: 340.2214 | H85: 10.939 | I85: 536 | P85: 64.3 | S85: 0.49
A86: 41.5 | B86: 342.1667 | C86: 110.3 | D86: 5.36 | E86: 2009-02-06T12:04:51 | F86: 68.1 | G86: 342.1667 | H86: 11.03 | I86: 536 | P86: 68.1 | S86: 0.49
A87: 42 | B87: 344.112 | C87: 111.21 | D87: 5.36 | E87: 2009-02-06T12:05:21 | F87: 66.6 | G87: 344.112 | H87: 11.121 | I87: 536 | P87: 66.6 | S87: 0.45
A88: 42.5 | B88: 346.0573 | C88: 112.12 | D88: 5.36 | E88: 2009-02-06T12:05:51 | F88: 67.8 | G88: 346.0573 | H88: 11.212 | I88: 536 | P88: 67.8 | S88: 0.46
A89: 43 | B89: 348.0026 | C89: 113.03 | D89: 5.36 | E89: 2009-02-06T12:06:21 | F89: 69 | G89: 348.0026 | H89: 11.303 | I89: 536 | P89: 69 | S89: 0.46
A90: 43.5 | B90: 349.9479 | C90: 113.94 | D90: 5.36 | E90: 2009-02-06T12:06:51 | F90: 69.6 | G90: 349.9479 | H90: 11.394 | I90: 536 | P90: 69.6 | S90: 0.46
A91: 44 | B91: 351.8932 | C91: 114.85 | D91: 5.36 | E91: 2009-02-06T12:07:21 | F91: 69.2 | G91: 351.8932 | H91: 11.485 | I91: 536 | J91: 0.78 | K91: 0.0013 | L91: 0 | M91: 0 | N91: 1877.8 | O91: 198 | P91: 69.2 | S91: 0.46
A92: 44.5 | B92: 353.8385 | C92: 115.76 | D92: 5.36 | E92: 2009-02-06T12:07:51 | F92: 65.3 | G92: 353.8385 | H92: 11.576 | I92: 536 | P92: 65.3 | S92: 0.46
A93: 45 | B93: 355.7838 | C93: 116.67 | D93: 5.36 | E93: 2009-02-06T12:09:11 | F93: 66.8 | G93: 355.7838 | H93: 11.667 | I93: 536 | P93: 66.8 | S93: 0.46
A94: 45.5 | B94: 357.7291 | C94: 117.58 | D94: 5.36 | E94: 2009-02-06T12:09:43 | F94: 67.3 | G94: 357.7291 | H94: 11.758 | I94: 536 | J94: 1.38 | K94: 0.0079 | L94: 28.7 | M94: 30.4 | N94: 1020.9 | O94: 1222 | P94: 67.3 | S94: 0.46
A95: 46 | B95: 359.6744 | C95: 118.49 | D95: 5.36 | E95: 2009-02-06T12:10:15 | F95: 67.3 | G95: 359.6744 | H95: 11.849 | I95: 536 | J95: 1.82 | K95: 0.0066 | L95: 44.8 | M95: 47.6 | N95: 750.3 | O95: 1020 | P95: 67.3 | S95: 0.45
A96: 46.5 | B96: 361.6197 | C96: 119.4 | D96: 5.36 | E96: 2009-02-06T12:10:47 | F96: 67.7 | G96: 361.6197 | H96: 11.94 | I96: 536 | J96: 2.15 | K96: 0.0037 | L96: 52.2 | M96: 55.4 | N96: 621.8 | O96: 577 | P96: 67.7 | S96: 0.45
A97: 47 | B97: 363.565 | C97: 120.31 | D97: 5.36 | E97: 2009-02-06T12:11:19 | F97: 67.9 | G97: 363.565 | H97: 12.031 | I97: 536 | J97: 2.41 | K97: 0.0015 | L97: 55.3 | M97: 58.7 | N97: 543.8 | O97: 232 | P97: 67.9 | S97: 0.45
A98: 47.5 | B98: 365.5103 | C98: 121.22 | D98: 5.36 | E98: 2009-02-06T12:11:51 | F98: 67.7 | G98: 365.5103 | H98: 12.122 | I98: 536 | J98: 2.63 | K98: 0.0013 | L98: 59.4 | M98: 63.1 | N98: 489.4 | O98: 206 | P98: 67.7 | S98: 0.45
A99: 48 | B99: 367.4556 | C99: 122.13 | D99: 5.36 | E99: 2009-02-06T12:12:23 | F99: 66.9 | G99: 367.4556 | H99: 12.213 | I99: 536 | J99: 2.84 | K99: 0.0011 | L99: 60.4 | M99: 64.2 | N99: 446.3 | O99: 175 | P99: 66.9 | S99: 0.45
A100: 48.5 | B100: 369.4009 | C100: 123.04 | D100: 5.36 | E100: 2009-02-06T12:12:55 | F100: 67.9 | G100: 369.4009 | H100: 12.304 | I100: 536 | J100: 3.04 | K100: 0.0007 | L100: 62.9 | M100: 66.7 | N100: 410 | O100: 112 | P100: 67.9 | S100: 0.46
A101: 49 | B101: 371.3462 | C101: 123.95 | D101: 5.36 | E101: 2009-02-06T12:13:27 | F101: 68.2 | G101: 371.3462 | H101: 12.395 | I101: 536 | J101: 3.27 | K101: 0.0014 | L101: 64.8 | M101: 68.9 | N101: 373.8 | O101: 213 | P101: 68.2 | S101: 0.45
A102: 49.5 | B102: 373.2915 | C102: 124.86 | D102: 5.36 | E102: 2009-02-06T12:13:59 | F102: 68.2 | G102: 373.2915 | H102: 12.486 | I102: 536 | J102: 3.54 | K102: 0.0018 | L102: 67.2 | M102: 71.4 | N102: 338.4 | O102: 281 | P102: 68.2 | S102: 0.45
A103: 50 | B103: 375.2368 | C103: 125.77 | D103: 5.36 | E103: 2009-02-06T12:14:31 | F103: 68.2 | G103: 375.2368 | H103: 12.577 | I103: 536 | J103: 3.75 | K103: 0.0048 | L103: 69.2 | M103: 73.5 | N103: 313.2 | O103: 744 | P103: 68.2 | S103: 0.45
A104: 50.5 | B104: 377.1821 | C104: 126.68 | D104: 5.36 | E104: 2009-02-06T12:15:03 | F104: 68.5 | G104: 377.1821 | H104: 12.668 | I104: 536 | J104: 3.95 | K104: 0.001 | L104: 70.2 | M104: 74.5 | N104: 292.3 | O104: 161 | P104: 68.5 | S104: 0.45
A105: 51 | B105: 379.1274 | C105: 127.59 | D105: 5.36 | E105: 2009-02-06T12:15:35 | F105: 68 | G105: 379.1274 | H105: 12.759 | I105: 536 | J105: 4.12 | K105: 0.0004 | L105: 70.6 | M105: 75 | N105: 275.8 | O105: 64 | P105: 68 | S105: 0.45
A106: 51.5 | B106: 381.0727 | C106: 128.5 | D106: 5.36 | E106: 2009-02-06T12:16:07 | F106: 68 | G106: 381.0727 | H106: 12.85 | I106: 536 | J106: 4.25 | K106: 0.0008 | L106: 71 | M106: 75.4 | N106: 264.8 | O106: 124 | P106: 68 | S106: 0.46
A107: 52 | B107: 383.018 | C107: 129.41 | D107: 5.36 | E107: 2009-02-06T12:16:39 | F107: 67.9 | G107: 383.018 | H107: 12.941 | I107: 536 | J107: 4.38 | K107: 0.0014 | L107: 72.2 | M107: 76.7 | N107: 254 | O107: 212 | P107: 67.9 | S107: 0.46
A108: 52.5 | B108: 384.9633 | C108: 130.32 | D108: 5.36 | E108: 2009-02-06T12:17:11 | F108: 67.8 | G108: 384.9633 | H108: 13.032 | I108: 536 | J108: 4.49 | K108: 0.0011 | L108: 71.9 | M108: 76.3 | N108: 245.2 | O108: 173 | P108: 67.8 | S108: 0.46
A109: 53 | B109: 386.9086 | C109: 131.23 | D109: 5.36 | E109: 2009-02-06T12:17:43 | F109: 67.8 | G109: 386.9086 | H109: 13.123 | I109: 536 | J109: 4.6 | K109: 0.0014 | L109: 72.4 | M109: 76.9 | N109: 236.7 | O109: 219 | P109: 67.8 | S109: 0.48
A110: 53.5 | B110: 388.8539 | C110: 132.14 | D110: 5.36 | E110: 2009-02-06T12:18:15 | F110: 67.9 | G110: 388.8539 | H110: 13.214 | I110: 536 | J110: 4.7 | K110: 0.0015 | L110: 72.6 | M110: 77.1 | N110: 229.6 | O110: 234 | P110: 67.9 | S110: 0.45
A111: 54 | B111: 390.7992 | C111: 133.05 | D111: 5.36 | E111: 2009-02-06T12:18:47 | F111: 68.1 | G111: 390.7992 | H111: 13.305 | I111: 536 | J111: 4.79 | K111: 0.0022 | L111: 73.3 | M111: 77.9 | N111: 223.7 | O111: 337 | P111: 68.1 | S111: 0.43
A112: 54.5 | B112: 392.7445 | C112: 133.96 | D112: 5.36 | E112: 2009-02-06T12:19:19 | F112: 66.9 | G112: 392.7445 | H112: 13.396 | I112: 536 | J112: 4.83 | K112: 0.0037 | L112: 73.2 | M112: 77.8 | N112: 221.1 | O112: 578 | P112: 66.9 | S112: 0.42
A113: 55 | B113: 394.6898 | C113: 134.87 | D113: 5.36 | E113: 2009-02-06T12:19:51 | F113: 66 | G113: =G112+1.9453 -> 394.6898 | H113: 13.487 | I113: 536 | J113: 4.85 | K113: 0.0048 | L113: 73.5 | M113: 78 | N113: 219.4 | O113: 751 | P113: 66 | S113: 0.42
A114: 55.5 | B114: 396.6351 | C114: 135.78 | D114: 5.36 | E114: 2009-02-06T12:20:23 | F114: 66.1 | G114: 396.6351 | H114: 13.578 | I114: 536 | J114: 4.86 | K114: 0.0073 | L114: 73.2 | M114: 77.8 | N114: 219 | O114: 1136 | P114: 66.1 | S114: 0.42
A115: 56 | B115: 398.5804 | C115: 136.69 | D115: 5.36 | E115: 2009-02-06T12:20:55 | F115: 66.5 | G115: 398.5804 | H115: 13.669 | I115: 536 | J115: 4.85 | K115: 0.0089 | L115: 72.8 | M115: 77.3 | N115: 219.3 | O115: 1376 | P115: 66.5 | S115: 0.42
A116: 56.5 | B116: 400.5257 | C116: 137.6 | D116: 5.36 | E116: 2009-02-06T12:21:27 | F116: 64.2 | G116: 400.5257 | H116: 13.76 | I116: 536 | J116: 4.83 | K116: 0.0096 | L116: 72.2 | M116: 76.7 | N116: 220.7 | O116: 1488 | P116: 64.2 | S116: 0.42
A117: 57 | B117: 402.471 | C117: 138.51 | D117: 5.36 | E117: 2009-02-06T12:21:59 | F117: 64.8 | G117: 402.471 | H117: 13.851 | I117: 536 | J117: 4.83 | K117: 0.0091 | L117: 73.1 | M117: 77.7 | N117: 220.8 | O117: 1408 | P117: 64.8 | S117: 0.42
A118: 57.5 | B118: 404.4163 | C118: 139.42 | D118: 5.36 | E118: 2009-02-06T12:22:31 | F118: 65.8 | G118: 404.4163 | H118: 13.942 | I118: 536 | J118: 4.84 | K118: 0.0083 | L118: 72.7 | M118: 77.2 | N118: 220.4 | O118: 1291 | P118: 65.8 | S118: 0.42
A119: 58 | B119: 406.3616 | C119: 140.33 | D119: 5.36 | E119: 2009-02-06T12:23:03 | F119: 66.9 | G119: 406.3616 | H119: 14.033 | I119: 536 | J119: 4.85 | K119: 0.0079 | L119: 73 | M119: 77.5 | N119: 219.3 | O119: 1226 | P119: 66.9 | S119: 0.41
A120: 58.5 | B120: 408.3069 | C120: 141.24 | D120: 5.36 | E120: 2009-02-06T12:23:35 | F120: 67.4 | G120: 408.3069 | H120: 14.124 | I120: 536 | J120: 4.87 | K120: 0.0091 | L120: 73.2 | M120: 77.7 | N120: 218.6 | O120: 1405 | P120: 67.4 | S120: 0.41
A121: 59 | B121: 410.2522 | C121: 142.15 | D121: 5.36 | E121: 2009-02-06T12:24:07 | F121: 67.5 | G121: 410.2522 | H121: 14.215 | I121: 536 | J121: 4.88 | K121: 0.0093 | L121: 72.9 | M121: 77.4 | N121: 217.9 | O121: 1443 | P121: 67.5 | S121: 0.41
A122: 59.5 | B122: 412.1975 | C122: 143.06 | D122: 5.36 | E122: 2009-02-06T12:24:39 | F122: 67.2 | G122: 412.1975 | H122: 14.306 | I122: 536 | J122: 4.89 | K122: 0.0097 | L122: 72.7 | M122: 77.2 | N122: 216.9 | O122: 1508 | P122: 67.2 | S122: 0.42
A123: 60 | B123: 414.1428 | C123: 143.97 | D123: 5.36 | E123: 2009-02-06T12:25:11 | F123: 68.1 | G123: 414.1428 | H123: 14.397 | I123: 536 | J123: 4.9 | K123: 0.0098 | L123: 73.4 | M123: 78 | N123: 216.5 | O123: 1516 | P123: 68.1 | S123: 0.41
A124: 60.5 | B124: 416.0881 | C124: 144 | D124: 5.4 | E124: 2009-02-06T12:25:43 | F124: 67.9 | G124: 416.0881 | H124: 14.4 | I124: 540 | J124: 4.88 | K124: 0.0111 | L124: 73.5 | M124: 78.1 | N124: 217.5 | O124: 1714 | P124: 67.9 | S124: 0.41
A125: 61 | B125: 418.0334 | C125: 143 | D125: 4.39 | E125: 2009-02-06T12:26:15 | F125: 65.1 | G125: 418.0334 | H125: 14.3 | I125: 439 | J125: 4.92 | K125: 0.0089 | L125: 73 | M125: 77.6 | N125: 215.1 | O125: 1383 | P125: 65.1 | S125: 0.4
A126: 61.5 | B126: 419.9787 | C126: 143 | D126: 4.8 | E126: 2009-02-06T12:26:47 | F126: 65.9 | G126: 419.9787 | H126: 14.3 | I126: 480 | J126: 4.96 | K126: 0.0097 | L126: 73.5 | M126: 78.1 | N126: 212.7 | O126: 1501 | P126: 65.9 | S126: 0.41
A127: 62 | B127: 420.1 | C127: 143 | D127: 5.05 | E127: 2009-02-06T12:27:19 | F127: 67.2 | G127: 420.1 | H127: 14.3 | I127: 505 | J127: 4.97 | K127: 0.0102 | L127: 73.2 | M127: 77.7 | N127: 212 | O127: 1575 | P127: 67.2 | S127: 0.4
A128: 62.5 | B128: 425.9 | C128: 143 | D128: 6.3 | E128: 2009-02-06T12:27:51 | F128: 67.7 | G128: 425.9 | H128: 14.3 | I128: 630 | J128: 4.95 | K128: 0.0127 | L128: 72.7 | M128: 77.2 | N128: 213.3 | O128: 1974 | P128: 67.7 | S128: 0.41
A129: 63 | B129: 416.1 | C129: 143 | D129: 7.2 | E129: 2009-02-06T12:28:23 | F129: 66.9 | G129: 416.1 | H129: 14.3 | I129: 720 | J129: 4.92 | K129: 0.0146 | L129: 73 | M129: 77.5 | N129: 215.2 | O129: 2269 | P129: 66.9 | S129: 0.41
A130: 63.5 | B130: 404.2 | C130: 144 | D130: 7.95 | E130: 2009-02-06T12:28:55 | F130: 66.8 | G130: 404.2 | H130: 14.4 | I130: 795 | J130: 4.88 | K130: 0.0163 | L130: 73.4 | M130: 78 | N130: 217.7 | O130: 2526 | P130: 66.8 | S130: 0.41
A131: 64 | B131: =FT -> 405 | C131: =Oxy*10 -> 145 | D131: =CO/100 -> 8.33 | E131: 2009-02-06T12:29:27 | F131: 67.4 | G131: 405 | H131: 14.5 | I131: 833 | J131: 4.8 | K131: 0.0174 | L131: 73 | M131: 77.6 | N131: 223 | O131: 2691 | P131: 67.4 | S131: 0.41
A132: 64.5 | B132: 358.3 | C132: 146 | D132: 19.38 | E132: 2009-02-06T12:29:59 | F132: 67.7 | G132: 358.3 | H132: 14.6 | I132: 1938 | J132: 4.72 | K132: 0.041 | L132: 74.4 | M132: 79 | N132: 228.1 | O132: 6358 | P132: 67.7 | S132: 0.41
A133: 65 | B133: 381.5 | C133: 141 | D133: 33.45 | E133: 2009-02-06T12:30:31 | F133: 67.9 | G133: 381.5 | H133: 14.1 | I133: 3345 | J133: 5.1 | K133: 0.0655 | L133: 73.1 | M133: 77.7 | N133: 203.7 | O133: 10158 | P133: 67.9 | S133: 0.41
A134: 65.5 | B134: 374.9 | C134: 137 | D134: 16.35 | E134: 2009-02-06T12:31:03 | F134: 67.9 | G134: 374.9 | H134: 13.7 | I134: 1635 | J134: 5.4 | K134: 0.0303 | L134: 76.1 | M134: 80.8 | N134: 187 | O134: 4692 | P134: 67.9 | S134: 0.41
A135: 66 | B135: 390.7 | C135: 134 | D135: 13.96 | E135: 2009-02-06T12:31:35 | F135: 67.9 | G135: 390.7 | H135: 13.4 | I135: 1396 | J135: 5.6 | K135: 0.0249 | L135: 76.1 | M135: 80.8 | N135: 176.7 | O135: 3863 | P135: 67.9 | S135: 0.41
A136: 66.5 | B136: 393.1 | C136: 133 | D136: 25.1 | E136: 2009-02-06T12:32:07 | F136: 66.9 | G136: 393.1 | H136: 13.3 | I136: 2510 | J136: 5.7 | K136: 0.044 | L136: 75.2 | M136: 79.9 | N136: 172 | O136: 6827 | P136: 66.9 | S136: 0.41
A137: 67 | B137: 407.4 | C137: 132 | D137: 15.63 | E137: 2009-02-06T12:32:39 | F137: 68.6 | G137: 407.4 | H137: 13.2 | I137: 1563 | J137: 5.79 | K137: 0.027 | L137: 75.7 | M137: 80.4 | N137: 167.6 | O137: 4183 | P137: 68.6 | S137: 0.42
A138: 67.5 | B138: 398 | C138: 131 | D138: 18.79 | E138: 2009-02-06T12:33:11 | F138: 65.4 | G138: 398 | H138: 13.1 | I138: 1879 | J138: 5.83 | K138: 0.0322 | L138: 75.8 | M138: 80.5 | N138: 166 | O138: 4997 | P138: 65.4 | S138: 0.41
A139: 68 | B139: 400.8 | C139: 131 | D139: 16.9 | E139: 2009-02-06T12:33:43 | F139: 64.2 | G139: 400.8 | H139: 13.1 | I139: 1690 | J139: 5.83 | K139: 0.029 | L139: 75.8 | M139: 80.5 | N139: 165.7 | O139: 4490 | P139: 64.2 | S139: 0.41
A140: 68.5 | B140: 398.1 | C140: 131 | D140: 12.28 | E140: 2009-02-06T12:34:15 | F140: 60.7 | G140: 398.1 | H140: 13.1 | I140: 1228 | J140: 5.81 | K140: 0.0211 | L140: 76.1 | M140: 80.8 | N140: 166.8 | O140: 3277 | P140: 60.7 | S140: 0.41
A141: 69 | B141: 400.5 | C141: 132 | D141: 8.42 | E141: 2009-02-06T12:34:47 | F141: 57.5 | G141: 400.5 | H141: 13.2 | I141: 842 | J141: 5.77 | K141: 0.0146 | L141: 76.1 | M141: 80.8 | N141: 168.7 | O141: 2262 | P141: 57.5 | S141: 0.41
A142: 69.5 | B142: 396.2 | C142: 133 | D142: 8.41 | E142: 2009-02-06T12:35:19 | F142: 61.3 | G142: 396.2 | H142: 13.3 | I142: 841 | J142: 5.67 | K142: 0.0148 | L142: 76.2 | M142: 80.9 | N142: 173.2 | O142: 2298 | P142: 61.3 | S142: 0.41
A143: 70 | B143: 393.1 | C143: 135 | D143: 11.38 | E143: 2009-02-06T12:35:51 | F143: 63.1 | G143: 393.1 | H143: 13.5 | I143: 1138 | J143: 5.55 | K143: 0.0205 | L143: 75.8 | M143: 80.5 | N143: 179.1 | O143: 3177 | P143: 63.1 | S143: 0.41
A144: 70.5 | B144: 393.9 | C144: 137 | D144: 14.02 | E144: 2009-02-06T12:36:23 | F144: 65.3 | G144: 393.9 | H144: 13.7 | I144: 1402 | J144: 5.41 | K144: 0.0259 | L144: 75.2 | M144: 79.8 | N144: 186.6 | O144: 4018 | P144: 65.3 | S144: 0.41
A145: 71 | B145: 398.3 | C145: 138 | D145: 15.95 | E145: 2009-02-06T12:36:55 | F145: 63.3 | G145: 398.3 | H145: 13.8 | I145: 1595 | J145: 5.28 | K145: 0.0302 | L145: 74.2 | M145: 78.8 | N145: 193.6 | O145: 4682 | P145: 63.3 | S145: 0.4
A146: 71.5 | B146: 394.8 | C146: 140 | D146: 18.12 | E146: 2009-02-06T12:37:27 | F146: 66.4 | G146: 394.8 | H146: 14 | I146: 1812 | J146: 5.14 | K146: 0.0352 | L146: 73.9 | M146: 78.5 | N146: 201.4 | O146: 5462 | P146: 66.4 | S146: 0.4
A147: 72 | B147: 392.9 | C147: 143 | D147: 20.01 | E147: 2009-02-06T12:37:59 | F147: 64.7 | G147: 392.9 | H147: 14.3 | I147: 2001 | J147: 4.98 | K147: 0.0402 | L147: 73.1 | M147: 77.6 | N147: 211.4 | O147: 6231 | P147: 64.7 | S147: 0.4
A148: 72.5 | B148: 383.8 | C148: 145 | D148: 19.53 | E148: 2009-02-06T12:38:31 | F148: 66.3 | G148: 383.8 | H148: 14.5 | I148: 1953 | J148: 4.81 | K148: 0.0406 | L148: 73.1 | M148: 77.6 | N148: 222 | O148: 6288 | P148: 66.3 | S148: 0.4
A149: 73 | B149: 394.9 | C149: 147 | D149: 20.49 | E149: 2009-02-06T12:39:03 | F149: 66.5 | G149: 394.9 | H149: 14.7 | I149: 2049 | J149: 4.66 | K149: 0.044 | L149: 71.7 | M149: 76.1 | N149: 232.8 | O149: 6819 | P149: 66.5 | S149: 0.4
A150: 73.5 | B150: 392.9 | C150: 149 | D150: 22.01 | E150: 2009-02-06T12:39:35 | F150: 66 | G150: 392.9 | H150: 14.9 | I150: 2201 | J150: 4.51 | K150: 0.0488 | L150: 70.9 | M150: 75.3 | N150: 243.9 | O150: 7569 | P150: 66 | S150: 0.4
A151: 74 | B151: 394.6 | C151: 151 | D151: 25.77 | E151: 2009-02-06T12:40:07 | F151: 68.2 | G151: 394.6 | H151: 15.1 | I151: 2577 | J151: 4.34 | K151: 0.0594 | L151: 69.7 | M151: 74 | N151: 257 | O151: 9200 | P151: 68.2 | S151: 0.39
A152: 74.5 | B152: 385.4 | C152: 153 | D152: 25.78 | E152: 2009-02-06T12:40:39 | F152: 68.9 | G152: 385.4 | H152: 15.3 | I152: 2578 | J152: 4.19 | K152: 0.0615 | L152: 69.6 | M152: 73.9 | N152: 269.7 | O152: 9532 | P152: 68.9 | S152: 0.39
A153: 75 | B153: 393.6 | C153: 155 | D153: 26.17 | E153: 2009-02-06T12:41:11 | F153: 68.9 | G153: 393.6 | H153: 15.5 | I153: 2617 | J153: 4.05 | K153: 0.0647 | L153: 68.1 | M153: 72.3 | N153: 283.2 | O153: 10028 | P153: 68.9 | S153: 0.4
A154: 75.5 | B154: 390.4 | C154: 157 | D154: 28.17 | E154: 2009-02-06T12:41:43 | F154: 67.4 | G154: 390.4 | H154: 15.7 | I154: 2817 | J154: 3.9 | K154: 0.0723 | L154: 67.1 | M154: 71.2 | N154: 297.6 | O154: 11201 | P154: 67.4 | S154: 0.4
A155: 76 | B155: 385.7 | C155: 159 | D155: 22.28 | E155: 2009-02-06T12:42:15 | F155: 68.7 | G155: 385.7 | H155: 15.9 | I155: 2228 | J155: 3.74 | K155: 0.0596 | L155: 67.2 | M155: 71.3 | N155: 314.4 | O155: 9233 | P155: 68.7 | S155: 0.39
A156: 76.5 | B156: 382.3 | C156: 163 | D156: 11.55 | E156: 2009-02-06T12:42:47 | F156: 68.6 | G156: 382.3 | H156: 16.3 | I156: 1155 | J156: 3.47 | K156: 0.0333 | L156: 67 | M156: 71.1 | N156: 346.9 | O156: 5162 | P156: 68.6 | S156: 0.39
A157: 77 | B157: 398 | C157: 165 | D157: 10.08 | E157: 2009-02-06T12:43:19 | F157: 68.6 | G157: 398 | H157: 16.5 | I157: 1008 | J157: 3.35 | K157: 0.0301 | L157: 64.9 | M157: 69 | N157: 362.9 | O157: 4666 | P157: 68.6 | S157: 0.39
A158: 77.5 | B158: 387.5 | C158: 166 | D158: 10.07 | E158: 2009-02-06T12:43:51 | F158: 66.4 | G158: 387.5 | H158: 16.6 | I158: 1007 | J158: 3.28 | K158: 0.0307 | L158: 65.1 | M158: 69.1 | N158: 372.7 | O158: 4760 | P158: 66.4 | S158: 0.39
A159: 78 | B159: 399 | C159: 166 | D159: 10.26 | E159: 2009-02-06T12:44:23 | F159: 67.1 | G159: 399 | H159: 16.6 | I159: 1026 | J159: 3.22 | K159: 0.0318 | L159: 63.6 | M159: 67.6 | N159: 380.9 | O159: 4934 | P159: 67.1 | S159: 0.39
A160: 78.5 | B160: 394.4 | C160: 167 | D160: 8.98 | E160: 2009-02-06T12:44:55 | F160: 67.7 | G160: 394.4 | H160: 16.7 | I160: 898 | J160: 3.17 | K160: 0.0283 | L160: 63.8 | M160: 67.8 | N160: 388.2 | O160: 4384 | P160: 67.7 | S160: 0.39
A161: 79 | B161: 398.9 | C161: 168 | D161: 10.01 | E161: 2009-02-06T12:45:27 | F161: 68.2 | G161: 398.9 | H161: 16.8 | I161: 1001 | J161: 3.13 | K161: 0.032 | L161: 62.9 | M161: 66.8 | N161: 395.5 | O161: 4960 | P161: 68.2 | S161: 0.39
A162: 79.5 | B162: 389.1 | C162: 168 | D162: 10.25 | E162: 2009-02-06T12:45:59 | F162: 67.4 | G162: 389.1 | H162: 16.8 | I162: 1025 | J162: 3.07 | K162: 0.0333 | L162: 63.1 | M162: 67 | N162: 404.2 | O162: 5168 | P162: 67.4 | S162: 0.39
A163: 80 | B163: 384.8 | C163: 169 | D163: 10.82 | E163: 2009-02-06T12:46:31 | F163: 65.3 | G163: 384.8 | H163: 16.9 | I163: 1082 | J163: 3.02 | K163: 0.0359 | L163: 62.7 | M163: 66.5 | N163: 414 | O163: 5562 | P163: 65.3 | S163: 0.38
P191: 64.2 | S191: 0.37
P192: 63.6 | S192: 0.36
P193: 63.8 | S193: 0.36
P194: 64 | S194: 0.37
P195: 64.8 | S195: 0.36
P196: 64 | S196: 0.37
P197: 61.8 | S197: 0.37
P198: 63.1 | S198: 0.36
P199: 61.7 | S199: 0.37
P200: 60.6 | S200: 0.37
P201: 61.2 | S201: 0.37
P202: 60.8 | S202: 0.37
P203: 60.5 | S203: 0.37
P204: 62 | S204: 0.37
P205: 62.1 | S205: 0.37
P206: 61.2 | S206: 0.37
P207: 60.8 | S207: 0.37
P208: 61.9 | S208: 0.37
P209: 63.2 | S209: 0.37
P210: 63.2 | S210: 0.37
P211: 62.3 | S211: 0.38
P212: 63.5 | S212: 0.38
P213: 62.8 | S213: 0.38
P214: 63.2 | S214: 0.38
P215: 61.7 | S215: 0.38
P216: 62.2 | S216: 0.38
P217: 61.7 | S217: 0.38
P218: 63.2 | S218: 0.38
P219: 63.3 | S219: 0.37
P220: 62.2 | S220: 0.37
P221: 63.6 | S221: 0.37
P222: 63.9 | S222: 0.37
P223: 63.8 | S223: 0.37
P224: 64.2 | S224: 0.37
P225: 63.6 | S225: 0.37
P226: 64 | S226: 0.36
P227: 63.7 | S227: 0.36
... 56 more rows
